[Event "Late-Titled-Tuesday-Blitz-April-23-2024"]
[Site "Chess.com"]
[Date "2024.04.23"]
[Round "7"]
[White "Arteler"]
[Black "Szachulec75"]
[Result "0-1"]
[WhiteElo "2271"]
[BlackElo "2088"]
[TimeControl "180+1"]
[EndTime "15:16:05 PDT"]
[Termination "Szachulec75 won by resignation"]

1. e4 {[%clk 0:03:00.9]} 1... d6 {[%clk 0:02:58.6]} 2. d4 {[%clk 0:03:00.4]}
2... Nf6 {[%clk 0:02:59.3]} 3. Nc3 {[%clk 0:03:00]} 3... c6 {[%clk 0:02:59.8]}
4. Bg5 {[%clk 0:03:00]} 4... e6 {[%clk 0:02:57.6]} 5. e5 {[%clk 0:02:31.2]} 5...
h6 {[%clk 0:02:55.9]} 6. Bh4 {[%clk 0:02:24.1]} 6... g5 {[%clk 0:02:55.6]} 7.
Bg3 {[%clk 0:02:19.9]} 7... Nd5 {[%clk 0:02:56]} 8. Nxd5 {[%clk 0:02:16.2]} 8...
cxd5 {[%clk 0:02:56]} 9. Nf3 {[%clk 0:02:11.1]} 9... Nc6 {[%clk 0:02:55.3]} 10.
Bb5 {[%clk 0:02:10.9]} 10... Qa5+ {[%clk 0:02:49.6]} 11. c3 {[%clk 0:01:56.9]}
11... Qxb5 {[%clk 0:02:48.9]} 12. exd6 {[%clk 0:01:56.2]} 12... Bd7 {[%clk
0:02:47.7]} 13. Ne5 {[%clk 0:01:54.1]} 13... Nxe5 {[%clk 0:02:44.9]} 14. dxe5
{[%clk 0:01:49.5]} 14... O-O-O {[%clk 0:02:44.6]} 15. a4 {[%clk 0:01:38.7]}
15... Qc4 {[%clk 0:02:43.2]} 16. Qd2 {[%clk 0:01:26.6]} 16... Bg7 {[%clk
0:02:40.1]} 17. b3 {[%clk 0:01:21.4]} 17... Qe4+ {[%clk 0:02:38.7]} 18. Kf1
{[%clk 0:01:16.2]} 18... Bxe5 {[%clk 0:02:35.9]} 19. Bxe5 {[%clk 0:01:08.2]}
19... Qxe5 {[%clk 0:02:35.4]} 20. c4 {[%clk 0:01:08.4]} 20... Qxd6 {[%clk
0:02:34.4]} 21. cxd5 {[%clk 0:01:04.4]} 21... Qxd5 {[%clk 0:02:34.6]} 22. Rc1+
{[%clk 0:01:03.7]} 22... Kb8 {[%clk 0:02:34.1]} 23. Qc3 {[%clk 0:00:59.2]} 23...
Bc6 {[%clk 0:02:32.9]} 24. f3 {[%clk 0:00:50.3]} 24... Qd3+ {[%clk 0:02:33.3]}
25. Qxd3 {[%clk 0:00:49.6]} 25... Rxd3 {[%clk 0:02:32.6]} 26. Kf2 {[%clk
0:00:49]} 26... Rhd8 {[%clk 0:02:32.5]} 27. Ke2 {[%clk 0:00:45.9]} 27... Rxb3
{[%clk 0:02:31.7]} 28. Rhd1 {[%clk 0:00:45.1]} 28... Rxd1 {[%clk 0:02:29.7]} 29.
Rxd1 {[%clk 0:00:45.4]} 29... Kc7 {[%clk 0:02:30.1]} 30. Rd3 {[%clk 0:00:43]}
30... Rxd3 {[%clk 0:02:29.4]} 31. Kxd3 {[%clk 0:00:43.9]} 31... Bxa4 {[%clk
0:02:29.3]} 32. g4 {[%clk 0:00:43.5]} 32... Bc6 {[%clk 0:02:29.3]} 33. Ke3
{[%clk 0:00:41.3]} 33... f5 {[%clk 0:02:29.7]} 34. gxf5 {[%clk 0:00:40.6]} 34...
exf5 {[%clk 0:02:29.9]} 0-1

[Event "Late-Titled-Tuesday-Blitz-April-23-2024"]
[Site "Chess.com"]
[Date "2024.04.23"]
[Round "7"]
[White "MarkoPe"]
[Black "shirovin"]
[Result "1-0"]
[WhiteElo "2396"]
[BlackElo "2091"]
[TimeControl "180+1"]
[EndTime "15:16:07 PDT"]
[Termination "MarkoPe won by resignation"]

1. d4 {[%clk 0:03:00]} 1... Nf6 {[%clk 0:02:58.9]} 2. g3 {[%clk 0:03:00.9]} 2...
e6 {[%clk 0:02:59.2]} 3. Bg2 {[%clk 0:03:01.2]} 3... d5 {[%clk 0:02:59.2]} 4.
Nf3 {[%clk 0:03:02.1]} 4... c5 {[%clk 0:02:59.2]} 5. O-O {[%clk 0:03:03]} 5...
Be7 {[%clk 0:02:53.6]} 6. c4 {[%clk 0:03:03]} 6... Nc6 {[%clk 0:02:51]} 7. Nc3
{[%clk 0:03:02.9]} 7... O-O {[%clk 0:02:50.1]} 8. cxd5 {[%clk 0:02:58.2]} 8...
exd5 {[%clk 0:02:49]} 9. Bg5 {[%clk 0:02:57.5]} 9... cxd4 {[%clk 0:02:47.1]} 10.
Nxd4 {[%clk 0:02:58.4]} 10... h6 {[%clk 0:02:46.4]} 11. Bf4 {[%clk 0:02:55.8]}
11... Bg4 {[%clk 0:02:45.5]} 12. Rc1 {[%clk 0:02:46.4]} 12... a6 {[%clk
0:02:41.5]} 13. Qd2 {[%clk 0:02:33.6]} 13... Rc8 {[%clk 0:02:22.1]} 14. h3
{[%clk 0:02:06.2]} 14... Nxd4 {[%clk 0:02:16]} 15. hxg4 {[%clk 0:01:40.4]} 15...
Ne6 {[%clk 0:02:14.5]} 16. Nxd5 {[%clk 0:01:37.7]} 16... Nxg4 {[%clk 0:02:03.8]}
17. Rxc8 {[%clk 0:01:31.3]} 1-0

[Event "Late-Titled-Tuesday-Blitz-April-23-2024"]
[Site "Chess.com"]
[Date "2024.04.23"]
[Round "7"]
[White "realburq"]
[Black "Mikhail_Golubev"]
[Result "0-1"]
[WhiteElo "2375"]
[BlackElo "2570"]
[TimeControl "180+1"]
[EndTime "15:16:15 PDT"]
[Termination "Mikhail_Golubev won by resignation"]

1. e4 {[%clk 0:03:00.9]} 1... c5 {[%clk 0:02:59]} 2. Nf3 {[%clk 0:02:58.9]} 2...
Nc6 {[%clk 0:02:58.1]} 3. Bb5 {[%clk 0:02:58.1]} 3... d6 {[%clk 0:02:57.6]} 4.
O-O {[%clk 0:02:56.1]} 4... Bd7 {[%clk 0:02:57.7]} 5. Re1 {[%clk 0:02:55.9]}
5... Nf6 {[%clk 0:02:55.3]} 6. c3 {[%clk 0:02:51.5]} 6... a6 {[%clk 0:02:55.5]}
7. Bf1 {[%clk 0:02:50.8]} 7... Bg4 {[%clk 0:02:54.4]} 8. h3 {[%clk 0:02:50.8]}
8... Bxf3 {[%clk 0:02:53.9]} 9. Qxf3 {[%clk 0:02:49.7]} 9... g6 {[%clk
0:02:54.2]} 10. d3 {[%clk 0:02:39.8]} 10... Bg7 {[%clk 0:02:54.1]} 11. Nd2
{[%clk 0:02:36.5]} 11... O-O {[%clk 0:02:54.3]} 12. Nc4 {[%clk 0:02:36.2]} 12...
b5 {[%clk 0:02:37.8]} 13. Ne3 {[%clk 0:02:34.8]} 13... b4 {[%clk 0:02:29.6]} 14.
Bd2 {[%clk 0:02:34.1]} 14... Nd7 {[%clk 0:02:28.3]} 15. Rac1 {[%clk 0:02:24]}
15... Rb8 {[%clk 0:02:25]} 16. Nc4 {[%clk 0:02:13.4]} 16... Nde5 {[%clk
0:02:20.9]} 17. Nxe5 {[%clk 0:02:11.2]} 17... Bxe5 {[%clk 0:02:12.5]} 18. Qe2
{[%clk 0:01:31]} 18... bxc3 {[%clk 0:02:07.1]} 19. bxc3 {[%clk 0:01:13.7]} 19...
Rb2 {[%clk 0:02:05.2]} 20. f4 {[%clk 0:01:09.3]} 20... Bg7 {[%clk 0:02:01.7]}
21. Qd1 {[%clk 0:01:06.3]} 21... Qa5 {[%clk 0:01:57.1]} 22. c4 {[%clk
0:00:50.4]} 22... Qxd2 {[%clk 0:01:49.2]} 0-1

[Event "Late-Titled-Tuesday-Blitz-April-23-2024"]
[Site "Chess.com"]
[Date "2024.04.23"]
[Round "7"]
[White "Abund"]
[Black "WindWhistler11"]
[Result "1-0"]
[WhiteElo "2755"]
[BlackElo "2535"]
[TimeControl "180+1"]
[EndTime "15:16:22 PDT"]
[Termination "Abund won by resignation"]

1. e4 {[%clk 0:02:58.5]} 1... e6 {[%clk 0:02:59.4]} 2. d4 {[%clk 0:02:58.1]}
2... d5 {[%clk 0:02:59.7]} 3. Nd2 {[%clk 0:02:58.6]} 3... Nc6 {[%clk 0:02:59.6]}
4. c3 {[%clk 0:02:54.4]} 4... Nf6 {[%clk 0:02:59.8]} 5. e5 {[%clk 0:02:46.1]}
5... Nd7 {[%clk 0:03:00.2]} 6. Bd3 {[%clk 0:02:44.8]} 6... f5 {[%clk 0:03:00.2]}
7. f4 {[%clk 0:02:38.4]} 7... Qe7 {[%clk 0:02:59.4]} 8. Ne2 {[%clk 0:02:37.9]}
8... Nd8 {[%clk 0:02:59.8]} 9. Nf3 {[%clk 0:02:37.6]} 9... Nf7 {[%clk
0:03:00.1]} 10. Be3 {[%clk 0:02:37.2]} 10... h6 {[%clk 0:02:59.7]} 11. Qd2
{[%clk 0:02:36.5]} 11... Rg8 {[%clk 0:02:57.5]} 12. h3 {[%clk 0:02:32]} 12... c5
{[%clk 0:02:44.6]} 13. g4 {[%clk 0:02:28.1]} 13... c4 {[%clk 0:02:44.3]} 14. Bc2
{[%clk 0:02:27.9]} 14... g6 {[%clk 0:02:43.4]} 15. Rg1 {[%clk 0:02:25.4]} 15...
Bg7 {[%clk 0:02:33.3]} 16. Kf2 {[%clk 0:01:40.9]} 16... Nf8 {[%clk 0:02:33]} 17.
Rg3 {[%clk 0:01:40.7]} 17... Nh7 {[%clk 0:02:32.5]} 18. Rag1 {[%clk 0:01:41.2]}
18... Nf8 {[%clk 0:02:12.6]} 19. b3 {[%clk 0:01:36.3]} 19... Bd7 {[%clk
0:02:05.9]} 20. bxc4 {[%clk 0:01:31.2]} 20... dxc4 {[%clk 0:02:06.8]} 21. gxf5
{[%clk 0:01:27.7]} 21... exf5 {[%clk 0:02:04.2]} 22. d5 {[%clk 0:01:27.8]} 22...
b6 {[%clk 0:01:47.1]} 23. e6 {[%clk 0:01:18.8]} 23... Nd6 {[%clk 0:01:44.1]} 24.
exd7+ {[%clk 0:01:15.5]} 24... Qxd7 {[%clk 0:01:41.6]} 25. Ne5 {[%clk
0:01:13.5]} 1-0

[Event "Late-Titled-Tuesday-Blitz-April-23-2024"]
[Site "Chess.com"]
[Date "2024.04.23"]
[Round "7"]
[White "BenchGM"]
[Black "Akhayan"]
[Result "0-1"]
[WhiteElo "2234"]
[BlackElo "2417"]
[TimeControl "180+1"]
[EndTime "15:16:33 PDT"]
[Termination "Akhayan won by resignation"]

1. e4 {[%clk 0:02:59.9]} 1... e5 {[%clk 0:02:59.9]} 2. Nf3 {[%clk 0:02:59.6]}
2... Nc6 {[%clk 0:03:00.4]} 3. Bb5 {[%clk 0:02:59.5]} 3... a6 {[%clk 0:03:00]}
4. Ba4 {[%clk 0:02:59.6]} 4... Nf6 {[%clk 0:03:00.5]} 5. O-O {[%clk 0:02:59.4]}
5... Be7 {[%clk 0:03:00.6]} 6. Re1 {[%clk 0:02:59.1]} 6... b5 {[%clk 0:03:00.9]}
7. Bb3 {[%clk 0:02:58.9]} 7... O-O {[%clk 0:03:01.6]} 8. c3 {[%clk 0:02:59.2]}
8... d5 {[%clk 0:03:02.1]} 9. a4 {[%clk 0:02:36]} 9... dxe4 {[%clk 0:02:59.6]}
10. Ng5 {[%clk 0:02:30.4]} 10... h6 {[%clk 0:02:56.2]} 11. axb5 {[%clk
0:02:17.4]} 11... hxg5 {[%clk 0:02:53.2]} 12. bxc6 {[%clk 0:02:17.3]} 12... Bc5
{[%clk 0:02:37]} 13. d4 {[%clk 0:02:13.2]} 13... exd3 {[%clk 0:02:36]} 14. Bxg5
{[%clk 0:01:56.8]} 14... Qd6 {[%clk 0:02:32.6]} 15. Be3 {[%clk 0:01:26]} 15...
e4 {[%clk 0:02:23.1]} 16. Nd2 {[%clk 0:01:19.5]} 16... Bxe3 {[%clk 0:02:15.7]}
17. Rxe3 {[%clk 0:01:18.6]} 17... Qxc6 {[%clk 0:02:15]} 18. Nxe4 {[%clk
0:00:48.9]} 18... Nxe4 {[%clk 0:02:12.5]} 19. Qf3 {[%clk 0:00:48.9]} 19... Bb7
{[%clk 0:02:07.3]} 20. Qh5 {[%clk 0:00:35.5]} 20... Nf6 {[%clk 0:02:00.7]} 21.
Qg5 {[%clk 0:00:32.9]} 21... Nh7 {[%clk 0:01:51.5]} 22. Qg6 {[%clk 0:00:30.7]}
22... Qxg6 {[%clk 0:01:50]} 0-1

[Event "Late-Titled-Tuesday-Blitz-April-23-2024"]
[Site "Chess.com"]
[Date "2024.04.23"]
[Round "7"]
[White "mjelcic"]
[Black "NikitaShnadrygin"]
[Result "0-1"]
[WhiteElo "2386"]
[BlackElo "2723"]
[TimeControl "180+1"]
[EndTime "15:16:36 PDT"]
[Termination "NikitaShnadrygin won by resignation"]

1. c4 {[%clk 0:03:00.9]} 1... Nf6 {[%clk 0:02:57.2]} 2. Nc3 {[%clk 0:03:00.5]}
2... d5 {[%clk 0:02:57.7]} 3. cxd5 {[%clk 0:02:58.6]} 3... Nxd5 {[%clk
0:02:58.6]} 4. g3 {[%clk 0:02:59]} 4... g6 {[%clk 0:02:58.4]} 5. Bg2 {[%clk
0:02:59.1]} 5... Nb6 {[%clk 0:02:59]} 6. Nf3 {[%clk 0:02:58]} 6... Bg7 {[%clk
0:02:59.6]} 7. O-O {[%clk 0:02:58.1]} 7... Nc6 {[%clk 0:02:59.9]} 8. d3 {[%clk
0:02:57.5]} 8... O-O {[%clk 0:03:00.6]} 9. Bd2 {[%clk 0:02:49.3]} 9... h6 {[%clk
0:02:59.6]} 10. Rc1 {[%clk 0:02:47.7]} 10... e5 {[%clk 0:02:59.5]} 11. a3 {[%clk
0:02:44.5]} 11... f5 {[%clk 0:02:59]} 12. b4 {[%clk 0:02:42.7]} 12... Nd4 {[%clk
0:02:58.7]} 13. e3 {[%clk 0:02:24.1]} 13... Nxf3+ {[%clk 0:02:56.5]} 14. Bxf3
{[%clk 0:02:22.2]} 14... Qxd3 {[%clk 0:02:51.3]} 15. Qb3+ {[%clk 0:02:21.9]}
15... Kh7 {[%clk 0:02:51.1]} 16. Rfd1 {[%clk 0:02:20.3]} 16... e4 {[%clk
0:02:50.1]} 17. Be2 {[%clk 0:02:14]} 17... Qd7 {[%clk 0:02:42.8]} 18. Nb5 {[%clk
0:02:08.5]} 18... c6 {[%clk 0:02:34.4]} 19. Bc3 {[%clk 0:02:08.3]} 19... Qf7
{[%clk 0:02:30.6]} 20. Qxf7 {[%clk 0:02:03.1]} 20... Rxf7 {[%clk 0:02:31.5]} 21.
Bxg7 {[%clk 0:01:58.3]} 21... Kxg7 {[%clk 0:02:28.1]} 22. Nd6 {[%clk 0:01:49.2]}
22... Re7 {[%clk 0:02:26.3]} 23. Nc4 {[%clk 0:01:45.6]} 23... Be6 {[%clk
0:02:19.5]} 24. Rd6 {[%clk 0:01:40.6]} 24... Bd5 {[%clk 0:02:03.7]} 25. Na5
{[%clk 0:01:17.9]} 25... Rae8 {[%clk 0:01:49.9]} 26. b5 {[%clk 0:00:49.3]} 26...
Nc8 {[%clk 0:01:48]} 27. Rxd5 {[%clk 0:00:42.9]} 27... cxd5 {[%clk 0:01:48.9]}
28. Rc5 {[%clk 0:00:41.2]} 28... b6 {[%clk 0:01:47.1]} 0-1

[Event "Late-Titled-Tuesday-Blitz-April-23-2024"]
[Site "Chess.com"]
[Date "2024.04.23"]
[Round "7"]
[White "Firouzja2003"]
[Black "MetiForce"]
[Result "1-0"]
[WhiteElo "3116"]
[BlackElo "2940"]
[TimeControl "180+1"]
[EndTime "15:16:44 PDT"]
[Termination "Firouzja2003 won by resignation"]

1. e4 {[%clk 0:02:59.7]} 1... c5 {[%clk 0:02:59.4]} 2. Nf3 {[%clk 0:02:59.4]}
2... d6 {[%clk 0:03:00]} 3. d4 {[%clk 0:02:59.4]} 3... cxd4 {[%clk 0:03:00.9]}
4. Nxd4 {[%clk 0:02:59.8]} 4... Nf6 {[%clk 0:03:01.5]} 5. Nc3 {[%clk 0:03:00.5]}
5... Nc6 {[%clk 0:03:02.2]} 6. Bg5 {[%clk 0:03:00.5]} 6... e6 {[%clk 0:03:02.1]}
7. Qd2 {[%clk 0:03:00.6]} 7... a6 {[%clk 0:03:01.6]} 8. Nxc6 {[%clk 0:03:00.8]}
8... bxc6 {[%clk 0:03:02.5]} 9. O-O-O {[%clk 0:03:01.3]} 9... Qa5 {[%clk
0:02:32.6]} 10. Kb1 {[%clk 0:02:57.3]} 10... Rb8 {[%clk 0:02:28.9]} 11. Bc4
{[%clk 0:02:57.3]} 11... Be7 {[%clk 0:02:15]} 12. Bb3 {[%clk 0:02:56.4]} 12...
Qb4 {[%clk 0:01:51.2]} 13. Rhe1 {[%clk 0:02:54.3]} 13... a5 {[%clk 0:01:47.9]}
14. e5 {[%clk 0:02:49.9]} 14... dxe5 {[%clk 0:01:46.9]} 15. Rxe5 {[%clk
0:02:50.8]} 15... h6 {[%clk 0:01:44.6]} 16. a3 {[%clk 0:02:47.8]} 16... Qb7
{[%clk 0:01:33.6]} 17. Bxf6 {[%clk 0:02:47.5]} 17... gxf6 {[%clk 0:01:16.8]} 18.
Rxa5 {[%clk 0:02:47.7]} 18... f5 {[%clk 0:01:12.5]} 19. Na4 {[%clk 0:02:47.5]}
19... Qc7 {[%clk 0:01:05.9]} 20. Qc3 {[%clk 0:02:47.4]} 20... Rg8 {[%clk
0:01:02]} 21. g3 {[%clk 0:02:47]} 21... Kf8 {[%clk 0:00:47.6]} 22. Nc5 {[%clk
0:02:47.2]} 22... h5 {[%clk 0:00:29.2]} 23. Qd2 {[%clk 0:02:45.4]} 23... Rg6
{[%clk 0:00:27.5]} 24. Nd3 {[%clk 0:02:45]} 24... Bg5 {[%clk 0:00:20.7]} 25. Qe1
{[%clk 0:02:42.7]} 25... Rb5 {[%clk 0:00:19.2]} 26. Rxb5 {[%clk 0:02:42.3]}
26... cxb5 {[%clk 0:00:20.1]} 27. Qb4+ {[%clk 0:02:42.2]} 27... Be7 {[%clk
0:00:19.6]} 28. Qxb5 {[%clk 0:02:42.4]} 28... Bd7 {[%clk 0:00:20.3]} 29. Qe5
{[%clk 0:02:41.6]} 29... Bd6 {[%clk 0:00:16.1]} 30. Qh8+ {[%clk 0:02:42.2]}
30... Ke7 {[%clk 0:00:16.8]} 31. Qxh5 {[%clk 0:02:42.8]} 31... Rg4 {[%clk
0:00:17.4]} 32. f4 {[%clk 0:02:40.4]} 32... Bb5 {[%clk 0:00:16.7]} 33. Qh3
{[%clk 0:02:39]} 33... Qb6 {[%clk 0:00:14.5]} 34. Qf1 {[%clk 0:02:39.1]} 34...
Rg8 {[%clk 0:00:14.1]} 35. Qe1 {[%clk 0:02:39.5]} 35... Rb8 {[%clk 0:00:13.5]}
36. Ne5 {[%clk 0:02:40.2]} 36... Qc5 {[%clk 0:00:08.6]} 37. Nxf7 {[%clk
0:02:40.1]} 37... Bc4 {[%clk 0:00:07.2]} 38. Nxd6 {[%clk 0:02:40]} 1-0

[Event "Late-Titled-Tuesday-Blitz-April-23-2024"]
[Site "Chess.com"]
[Date "2024.04.23"]
[Round "7"]
[White "Giantgoogachess"]
[Black "Statham_01"]
[Result "0-1"]
[WhiteElo "2311"]
[BlackElo "2547"]
[TimeControl "180+1"]
[EndTime "15:17:02 PDT"]
[Termination "Statham_01 won by checkmate"]

1. d4 {[%clk 0:03:00.9]} 1... e6 {[%clk 0:02:59.1]} 2. c4 {[%clk 0:03:01.3]}
2... b6 {[%clk 0:02:58.8]} 3. e4 {[%clk 0:02:54.8]} 3... Bb7 {[%clk 0:02:58.8]}
4. Bd3 {[%clk 0:02:55.3]} 4... Bb4+ {[%clk 0:02:56.5]} 5. Bd2 {[%clk 0:02:55]}
5... Bxd2+ {[%clk 0:02:53.6]} 6. Qxd2 {[%clk 0:02:55.9]} 6... c5 {[%clk
0:02:53.3]} 7. d5 {[%clk 0:02:55.2]} 7... d6 {[%clk 0:02:52.7]} 8. Nc3 {[%clk
0:02:54.9]} 8... Ne7 {[%clk 0:02:48.7]} 9. Nge2 {[%clk 0:02:52.4]} 9... Nd7
{[%clk 0:02:48.7]} 10. O-O {[%clk 0:02:51.3]} 10... e5 {[%clk 0:02:41.1]} 11. a3
{[%clk 0:02:48.9]} 11... a6 {[%clk 0:02:35.4]} 12. b4 {[%clk 0:02:48.7]} 12...
Qc7 {[%clk 0:02:33.8]} 13. Ng3 {[%clk 0:02:44.1]} 13... g6 {[%clk 0:02:32.1]}
14. Rfc1 {[%clk 0:02:38.8]} 14... h5 {[%clk 0:02:29.3]} 15. Nf1 {[%clk
0:02:38.1]} 15... O-O-O {[%clk 0:02:25]} 16. Rab1 {[%clk 0:02:37.3]} 16... f5
{[%clk 0:02:17.5]} 17. Na4 {[%clk 0:02:33.4]} 17... Kb8 {[%clk 0:01:49.6]} 18.
bxc5 {[%clk 0:02:31.8]} 18... dxc5 {[%clk 0:01:49.1]} 19. Qg5 {[%clk 0:02:25.5]}
19... Nc8 {[%clk 0:01:40.4]} 20. Qxg6 {[%clk 0:02:19.8]} 20... fxe4 {[%clk
0:01:39.1]} 21. Qxe4 {[%clk 0:02:16.9]} 21... Nd6 {[%clk 0:01:35.6]} 22. Qe2
{[%clk 0:02:16.1]} 22... Rhg8 {[%clk 0:01:31.3]} 23. Nd2 {[%clk 0:02:14.4]}
23... e4 {[%clk 0:01:16.7]} 24. Nxe4 {[%clk 0:02:04.7]} 24... Nf5 {[%clk
0:01:06.2]} 25. Qb2 {[%clk 0:01:59.1]} 25... Ka7 {[%clk 0:00:52.6]} 26. Bf1
{[%clk 0:01:42.2]} 26... Rg6 {[%clk 0:00:48.4]} 27. Re1 {[%clk 0:01:34.7]} 27...
Ne5 {[%clk 0:00:44.7]} 28. Ng3 {[%clk 0:01:33.6]} 28... Nd4 {[%clk 0:00:39.1]}
29. Rbd1 {[%clk 0:01:32.1]} 29... h4 {[%clk 0:00:37.7]} 30. Ne4 {[%clk
0:01:28.9]} 30... Nef3+ {[%clk 0:00:36.7]} 31. Kh1 {[%clk 0:01:29.6]} 31...
Qxh2# {[%clk 0:00:36.7]} 0-1

[Event "Late-Titled-Tuesday-Blitz-April-23-2024"]
[Site "Chess.com"]
[Date "2024.04.23"]
[Round "7"]
[White "m_ezat"]
[Black "A4RookA3"]
[Result "1-0"]
[WhiteElo "2614"]
[BlackElo "2356"]
[TimeControl "180+1"]
[EndTime "15:17:07 PDT"]
[Termination "m_ezat won by resignation"]

1. d4 {[%clk 0:02:53.6]} 1... Nf6 {[%clk 0:03:00.9]} 2. c4 {[%clk 0:02:52.2]}
2... e6 {[%clk 0:02:59.3]} 3. Nc3 {[%clk 0:02:52.3]} 3... Bb4 {[%clk 0:02:58.7]}
4. e3 {[%clk 0:02:51.9]} 4... O-O {[%clk 0:02:58]} 5. a3 {[%clk 0:02:52]} 5...
Bxc3+ {[%clk 0:02:52.8]} 6. bxc3 {[%clk 0:02:52.9]} 6... d5 {[%clk 0:02:53.6]}
7. cxd5 {[%clk 0:02:52.5]} 7... exd5 {[%clk 0:02:52.6]} 8. Bd3 {[%clk
0:02:52.2]} 8... c5 {[%clk 0:02:50.4]} 9. f3 {[%clk 0:02:51.3]} 9... Nc6 {[%clk
0:02:50.1]} 10. Ne2 {[%clk 0:02:50.8]} 10... Re8 {[%clk 0:02:46.5]} 11. O-O
{[%clk 0:02:50.5]} 11... b6 {[%clk 0:02:35.5]} 12. Ra2 {[%clk 0:02:48]} 12...
Bb7 {[%clk 0:02:32.9]} 13. Ng3 {[%clk 0:02:46]} 13... Rc8 {[%clk 0:02:25.9]} 14.
Re2 {[%clk 0:02:35.2]} 14... Na5 {[%clk 0:02:19.4]} 15. Rfe1 {[%clk 0:02:29.5]}
15... cxd4 {[%clk 0:02:11.4]} 16. cxd4 {[%clk 0:02:28.7]} 16... Nc4 {[%clk
0:02:07.2]} 17. Kh1 {[%clk 0:02:22.7]} 17... Qd6 {[%clk 0:02:02.9]} 18. e4
{[%clk 0:02:18.4]} 18... dxe4 {[%clk 0:02:02.4]} 19. fxe4 {[%clk 0:02:17.9]}
19... Qxd4 {[%clk 0:01:59.8]} 20. e5 {[%clk 0:02:17.9]} 20... Red8 {[%clk
0:00:47.2]} 21. exf6 {[%clk 0:02:10.7]} 21... Qxf6 {[%clk 0:00:48.1]} 22. Qa4
{[%clk 0:01:49]} 22... Nd6 {[%clk 0:00:22.8]} 23. Qg4 {[%clk 0:01:33.2]} 23...
Qd4 {[%clk 0:00:11.7]} 24. Qxd4 {[%clk 0:01:32.1]} 1-0

[Event "Late-Titled-Tuesday-Blitz-April-23-2024"]
[Site "Chess.com"]
[Date "2024.04.23"]
[Round "7"]
[White "juancruzarias"]
[Black "sergiochess83"]
[Result "1/2-1/2"]
[WhiteElo "2643"]
[BlackElo "2923"]
[TimeControl "180+1"]
[EndTime "15:17:26 PDT"]
[Termination "Game drawn by repetition"]

1. d4 {[%clk 0:03:00.9]} 1... Nf6 {[%clk 0:02:51.8]} 2. c4 {[%clk 0:02:58.7]}
2... g6 {[%clk 0:02:50.4]} 3. Nc3 {[%clk 0:02:58.5]} 3... d5 {[%clk 0:02:50.3]}
4. Nf3 {[%clk 0:02:57.6]} 4... Bg7 {[%clk 0:02:49.8]} 5. cxd5 {[%clk 0:02:58.1]}
5... Nxd5 {[%clk 0:02:49.9]} 6. e4 {[%clk 0:02:58.3]} 6... Nxc3 {[%clk
0:02:50.2]} 7. bxc3 {[%clk 0:02:59.2]} 7... c5 {[%clk 0:02:50.8]} 8. Bb5+ {[%clk
0:02:58.2]} 8... Bd7 {[%clk 0:02:46.5]} 9. Bxd7+ {[%clk 0:02:50.6]} 9... Nxd7
{[%clk 0:02:45.3]} 10. O-O {[%clk 0:02:48.7]} 10... O-O {[%clk 0:02:44.6]} 11.
Rb1 {[%clk 0:02:45.1]} 11... Qc7 {[%clk 0:02:42.5]} 12. Be3 {[%clk 0:02:34.2]}
12... e6 {[%clk 0:02:30.6]} 13. d5 {[%clk 0:02:29.4]} 13... exd5 {[%clk
0:02:28.4]} 14. exd5 {[%clk 0:02:29.1]} 14... Nb6 {[%clk 0:02:15.3]} 15. Qd3
{[%clk 0:02:05.8]} 15... c4 {[%clk 0:02:09]} 16. Bxb6 {[%clk 0:01:54.7]} 16...
axb6 {[%clk 0:02:05.7]} 17. Qe3 {[%clk 0:01:44.4]} 17... Rfd8 {[%clk 0:02:01.1]}
18. Qxb6 {[%clk 0:01:34.2]} 18... Qxb6 {[%clk 0:01:53.8]} 19. Rxb6 {[%clk
0:01:35.1]} 19... Bxc3 {[%clk 0:01:46.5]} 20. Rxb7 {[%clk 0:01:28.9]} 20... Rxd5
{[%clk 0:01:45.2]} 21. h4 {[%clk 0:01:24.1]} 21... Bf6 {[%clk 0:01:39.2]} 22.
Rc1 {[%clk 0:01:19.9]} 22... c3 {[%clk 0:01:19.9]} 23. Ng5 {[%clk 0:01:19.5]}
23... Bxg5 {[%clk 0:01:13.7]} 24. hxg5 {[%clk 0:01:18.8]} 24... Rxa2 {[%clk
0:01:11.4]} 25. Rxc3 {[%clk 0:00:48.1]} 25... Rxg5 {[%clk 0:01:11.3]} 26. Rf3
{[%clk 0:00:38.8]} 26... Ra1+ {[%clk 0:00:58.5]} 27. Kh2 {[%clk 0:00:38.7]}
27... Rh5+ {[%clk 0:00:58.9]} 28. Kg3 {[%clk 0:00:38.8]} 28... Rg5+ {[%clk
0:00:59.3]} 29. Kh2 {[%clk 0:00:38.6]} 29... Rh5+ {[%clk 0:00:59.8]} 30. Kg3
{[%clk 0:00:38.9]} 30... Rg5+ {[%clk 0:01:00.3]} 31. Kh2 {[%clk 0:00:39.3]}
1/2-1/2

[Event "Late-Titled-Tuesday-Blitz-April-23-2024"]
[Site "Chess.com"]
[Date "2024.04.23"]
[Round "7"]
[White "Zura_19"]
[Black "Fins0905"]
[Result "1-0"]
[WhiteElo "2608"]
[BlackElo "2759"]
[TimeControl "180+1"]
[EndTime "15:17:26 PDT"]
[Termination "Zura_19 won by resignation"]

1. e4 {[%clk 0:02:58.8]} 1... d5 {[%clk 0:02:55.5]} 2. exd5 {[%clk 0:02:58.3]}
2... Qxd5 {[%clk 0:02:55.9]} 3. Nc3 {[%clk 0:02:58.1]} 3... Qa5 {[%clk
0:02:55.6]} 4. d4 {[%clk 0:02:58.1]} 4... Nf6 {[%clk 0:02:55.7]} 5. Bd2 {[%clk
0:02:57.7]} 5... Bg4 {[%clk 0:02:54.9]} 6. Be2 {[%clk 0:02:49.6]} 6... Bxe2
{[%clk 0:02:53.6]} 7. Qxe2 {[%clk 0:02:50.2]} 7... Qf5 {[%clk 0:02:45.9]} 8. Nf3
{[%clk 0:02:43.9]} 8... Nc6 {[%clk 0:02:44.4]} 9. O-O {[%clk 0:02:36.7]} 9...
O-O-O {[%clk 0:02:40.2]} 10. Be3 {[%clk 0:02:28.7]} 10... e6 {[%clk 0:02:38.3]}
11. a3 {[%clk 0:02:17.1]} 11... g5 {[%clk 0:02:29.5]} 12. b4 {[%clk 0:02:09.9]}
12... g4 {[%clk 0:02:26.8]} 13. Ne5 {[%clk 0:01:53.3]} 13... Nxe5 {[%clk
0:01:38]} 14. dxe5 {[%clk 0:01:53]} 14... Nd5 {[%clk 0:01:37.2]} 15. Nb5 {[%clk
0:01:45.4]} 15... a6 {[%clk 0:01:33.2]} 16. Na7+ {[%clk 0:01:31.4]} 16... Kb8
{[%clk 0:01:32.5]} 17. b5 {[%clk 0:01:30.6]} 17... Nxe3 {[%clk 0:00:56.2]} 18.
Nc6+ {[%clk 0:01:13.1]} 18... bxc6 {[%clk 0:00:45.7]} 19. bxc6 {[%clk 0:01:14]}
19... Nc4 {[%clk 0:00:24.8]} 20. Qxc4 {[%clk 0:01:11.9]} 20... Ka7 {[%clk
0:00:24]} 21. Rab1 {[%clk 0:01:11.1]} 21... Rb8 {[%clk 0:00:15]} 22. Rxb8 {[%clk
0:01:10.7]} 22... Kxb8 {[%clk 0:00:15.9]} 23. Qxa6 {[%clk 0:01:09.6]} 1-0